bitfinex/quotes_ETHUSD_20241212
["timestamp","ask_amount","ask_price","bid_price","bid_amount"]
[1733965192847,2.61952,3817.5,3817.0,0.7501]
[1733965193044,0.24323257,3817.4,3817.0,0.7501]
[1733965193257,2.61952,3817.5,3817.0,0.7501]
[1733965193414,0.24323797,3817.4,3817.0,0.7501]
[1733965194280,2.61952,3817.5,3817.0,0.7501]
[1733965194462,2.86286122,3817.4,3817.0,0.7501]
[1733965194758,2.61959,3817.4,3817.0,0.7501]
[1733965194943,0.24324245,3817.3,3817.0,0.7501]
[1733965195152,2.75320432,3817.9,3817.0,0.7501]
[1733965195153,2.61944,3817.7,3817.0,0.7501]
[1733965195369,2.86274903,3817.6,3817.0,0.7501]
[1733965195660,0.24328903,3817.5,3817.0,0.7501]
[1733965195871,0.24328903,3817.4,3817.0,0.7501]
[1733965196011,2.61946,3817.6,3817.0,0.7501]
[1733965196210,0.24336273,3817.5,3817.0,0.7501]
[1733965196444,0.24336273,3817.4,3817.0,0.7501]
[1733965196653,0.24336273,3817.3,3817.0,0.7501]
[1733965196814,2.61946,3817.6,3817.0,0.7501]
[1733965197165,0.24336024,3817.5,3817.0,0.7501]
[1733965197369,0.24336024,3817.4,3817.0,0.7501]
[1733965197525,2.61931,3817.8,3817.0,0.7501]
[1733965197729,2.86275077,3817.7,3817.0,0.7501]
[1733965197948,0.24338077,3817.6,3817.0,0.7501]
[1733965198157,0.24338077,3817.5,3817.2,0.803]
[1733965198468,3.70586706,3818.2,3817.2,0.803]
[1733965198656,2.49577359,3818.1,3817.3,0.8291949]
[1733965198967,0.24342768,3818.0,3817.3,0.803]
[1733965199267,0.24340323,3818.3,3817.6,0.803]
[1733965199574,3.70555706,3818.7,3817.8,0.803]
[1733965199575,0.24340333,3818.2,3817.8,0.803]
[1733965199732,2.61874,3818.7,3817.8,0.803]
[1733965199917,0.24341335,3818.6,3817.8,0.803]
[1733965200259,0.24341335,3818.5,3817.8,0.803]
[1733965200412,0.24341335,3818.4,3817.8,0.803]
[1733965200618,0.24341335,3818.3,3817.8,0.803]
[1733965200808,0.24341335,3818.2,3817.8,0.803]
[1733965201008,0.24341335,3818.1,3817.8,0.803]
[1733965201211,2.61876,3818.6,3817.8,0.98808]
[1733965201512,2.86229615,3818.5,3817.8,0.803]
[1733965201713,0.24345615,3818.4,3817.8,0.803]
[1733965201936,0.24345615,3818.3,3817.8,0.803]
[1733965202152,0.24345615,3818.2,3817.8,0.803]
[1733965202449,2.61899,3818.3,3817.8,0.803]
[1733965202649,0.24331399,3818.2,3817.8,0.803]
[1733965202849,2.61883,3818.5,3817.8,0.803]
[1733965203057,0.24333727,3818.4,3817.8,0.803]
[1733965203217,0.24333727,3818.3,3817.8,0.803]
[1733965203413,3.83445518,3818.9,3817.8,0.803]
[1733965203635,3.58137453,3818.8,3817.8,0.803]
[1733965203854,1.14383328,3818.7,3817.8,0.803]
[1733965204079,2.40771579,3818.4,3817.1,0.803]
[1733965204285,1.98716921,3818.3,3817.1,0.803]
[1733965204553,2.61952,3817.5,3817.1,0.803]
[1733965204769,1.84911706,3818.2,3817.1,0.803]
[1733965204972,2.61944,3817.6,3817.1,0.803]
[1733965205160,0.2433611,3817.5,3817.1,0.803]
[1733965205473,0.2433611,3817.4,3816.4,0.803]
[1733965205649,2.62008,3816.7,3816.4,0.803]
[1733965206029,0.2123,3817.5,3816.4,0.803]
[1733965206373,2.61987,3817.0,3816.4,0.803]
[1733965206513,0.24332408,3816.9,3816.4,0.803]
[1733965206854,0.24332408,3816.8,3816.4,0.803]
[1733965207025,0.24332408,3817.5,3816.4,0.803]
[1733965207226,0.24332408,3817.4,3816.6,0.8091]
[1733965207438,2.61944,3817.6,3816.6,0.8091]
[1733965207627,0.24337654,3817.3,3816.6,0.99925648]
[1733965207851,0.24337654,3817.5,3816.8,0.8091]
[1733965208052,2.86268654,3817.8,3816.8,0.8091]
[1733965208266,0.24339285,3817.7,3816.8,0.8091]
[1733965208569,0.24339285,3817.6,3816.8,0.8091]
[1733965208755,0.24339285,3817.5,3816.8,0.8091]
[1733965208939,0.24338616,3817.4,3816.8,0.8091]
[1733965209142,1.08681706,3818.2,3816.8,0.8091]
[1733965209390,1.14439119,3818.1,3817.0,0.8091]
[1733965209555,0.24340176,3818.0,3817.2,0.8091]
[1733965209871,0.24340176,3817.9,3817.3,0.8091]
[1733965210060,2.86237176,3818.3,3817.3,0.8091]
[1733965210374,2.86244176,3818.2,3817.3,0.8091]
[1733965210670,2.61904,3818.2,3817.3,0.8091]
[1733965210870,0.24338693,3818.1,3817.3,0.8091]
[1733965211169,2.61949,3817.6,3817.3,0.8091]
[1733965211326,0.24338693,3817.5,3817.3,0.8091]
[1733965211532,0.24338693,3817.4,3817.3,0.8091]
[1733965211966,0.24338693,3817.6,3817.3,0.8091]
[1733965212157,0.24338693,3817.5,3817.3,0.8091]
[1733965212352,0.24338693,3817.4,3817.3,0.8091]
[1733965212874,0.24338693,3817.8,3817.3,0.8091]
[1733965213043,0.24338693,3817.7,3817.3,0.8091]
[1733965213371,2.61924,3817.9,3817.3,0.8091]
[1733965213681,2.61917,3818.0,3817.3,0.8091]
[1733965214065,2.61912,3818.1,3817.3,0.8091]
[1733965214235,2.61937,3817.8,3817.3,0.8091]
[1733965214667,0.24340244,3817.7,3817.3,0.8091]
[1733965214991,0.24340244,3817.6,3817.3,0.8091]
[1733965215275,0.24340743,3817.7,3817.3,0.8091]
[1733965215475,2.61937,3817.8,3817.3,0.8091]
[1733965215657,0.03824753,3817.5,3817.3,0.8091]
[1733965215832,0.24340393,3818.0,3817.3,0.8091]
[1733965216034,2.61968,3817.3,3816.9,0.8091]
[1733965216272,2.61985,3817.0,3816.4,1.0924648]
[1733965216473,2.61978,3817.1,3816.5,0.8091]
[1733965216768,2.61969,3817.3,3816.5,0.8091]
[1733965216769,0.03442863,3816.9,3816.5,0.8091]
[1733965217075,2.86325467,3817.0,3816.5,0.8091]
[1733965217076,0.03820487,3816.8,3816.5,0.8091]
[1733965217378,2.61992,3817.0,3816.5,0.8091]
[1733965217729,0.03825404,3816.9,3816.5,0.8091]
[1733965218769,2.65819404,3816.9,3816.5,0.8091]
[1733965219173,2.62006,3816.7,3816.5,0.8091]
[1733965219531,0.03810653,3816.6,3816.5,0.8091]
[1733965220402,0.24325339,3817.2,3816.5,0.8091]
[1733965221258,0.24316008,3817.2,3816.5,0.8091]
[1733965221747,2.61986,3817.0,3816.5,0.8091]
[1733965222194,2.61973,3817.2,3816.5,0.8091]
[1733965222476,0.24317155,3817.1,3816.5,0.8091]
[1733965222637,2.61973,3817.2,3816.5,0.8091]
[1733965222977,0.24315949,3817.1,3816.5,0.8091]
[1733965223193,2.62,3816.8,3816.5,0.8091]
[1733965223552,2.61986,3817.0,3816.5,0.8091]
[1733965223754,1.08681706,3817.4,3816.5,0.8091]
[1733965223981,2.62007,3816.7,3816.5,0.8091]
[1733965224182,2.61972,3817.2,3815.9,0.7565]
[1733965224183,1.08681706,3817.2,3815.9,0.7565]
[1733965224424,2.62021,3816.5,3815.9,0.7565]
[1733965224854,1.29911706,3817.1,3815.9,0.7565]
[1733965225055,2.62007,3816.7,3815.9,0.7565]
[1733965225349,2.62007,3816.7,3815.9,0.94139648]
[1733965225548,3.91896706,3817.1,3815.9,0.94139648]
[1733965225755,2.62001,3816.8,3815.9,0.7565]
[1733965226352,1.63022559,3817.4,3815.9,0.7565]
[1733965226353,2.61985,3817.0,3815.9,0.7565]
[1733965226553,2.61985,3817.0,3816.0,0.7565]
[1733965226849,2.61985,3817.0,3816.1,0.78270315]
[1733965227052,2.61973,3817.2,3816.1,0.78270315]
[1733965227248,2.61956,3817.5,3816.3,0.7565]
[1733965227488,0.2430428,3817.4,3816.4,0.7565]
[1733965227993,0.24304663,3817.4,3816.4,0.7565]
[1733965228559,2.86262663,3817.4,3816.4,0.7565]
[1733965228760,0.24304663,3817.3,3816.4,0.7565]
[1733965228984,0.24304663,3817.3,3816.6,0.7565]
[1733965229184,2.61946,3817.6,3816.6,0.7565]
[1733965229458,0.24305212,3817.5,3816.6,0.7565]
[1733965229662,1.42827336,3817.8,3816.0,0.7565]
[1733965229663,2.40771579,3816.9,3816.0,0.7565]
[1733965229996,2.83236,3816.7,3815.6,1.0924648]
[1733965230218,2.62102,3815.3,3815.2,0.7565]
[1733965230371,2.40771579,3815.3,3814.5,1.8489648]
[1733965230580,3.23153407,3815.3,3814.5,0.7565]
[1733965230785,2.62116,3815.1,3814.5,0.7565]
[1733965231666,3.49453285,3815.7,3814.5,0.7565]
[1733965231863,2.62089,3815.5,3814.5,0.7565]
[1733965232063,2.40771579,3815.7,3814.5,1.04862]
[1733965232310,5.02847579,3815.7,3814.6,0.8135]
[1733965232475,5.02847579,3815.7,3814.7,0.186215]
[1733965233274,2.62085,3815.6,3814.7,0.186215]
[1733965233478,2.62089,3815.5,3814.7,0.186215]
[1733965233680,2.62089,3815.5,3814.6,0.8135]
[1733965233903,2.40771579,3815.7,3814.6,0.8135]
[1733965234106,0.24257223,3815.6,3814.6,0.8135]
[1733965234306,2.40771579,3815.3,3814.6,0.8135]
[1733965234604,2.62137,3814.8,3814.6,0.8135]
[1733965234962,2.62143,3814.7,3814.6,0.8135]
[1733965235365,2.62143,3814.7,3814.1,0.8135]
[1733965235785,2.62152,3814.6,3814.1,0.8135]
[1733965237465,2.62154,3814.6,3814.1,0.8135]
[1733965239581,2.62123,3815.0,3814.1,0.8135]
[1733965239807,2.62143,3814.7,3814.1,0.8135]
[1733965242003,2.40771579,3814.9,3814.1,0.8135]
[1733965242587,2.62129,3815.0,3814.1,0.8135]
[1733965243882,2.62112,3815.2,3814.1,0.8135]
[1733965244079,2.62112,3815.2,3814.0,1.05299385]
[1733965244080,2.62112,3815.2,3814.3,0.7845]
[1733965244505,2.75280302,3815.2,3814.3,0.7845]
[1733965245193,2.62117,3815.1,3814.3,0.7845]
[1733965245397,0.13168302,3815.2,3814.3,0.7845]
[1733965245574,2.62116,3815.1,3814.3,0.7845]
[1733965245788,2.6215,3814.6,3814.3,0.7845]
[1733965247054,2.40771579,3814.9,3814.3,0.7845]
[1733965247516,2.6216,3814.5,3814.3,0.7845]
[1733965247829,2.62144,3814.7,3814.3,0.7845]
[1733965248031,2.61855649,3814.7,3814.3,0.7845]
[1733965248390,2.62163,3814.5,3814.0,0.78875385]
[1733965248612,2.62164,3814.4,3814.0,0.78875385]
[1733965248812,2.62164,3814.4,3814.0,0.7845]
[1733965250398,0.2123,3814.8,3814.0,0.7845]
[1733965250399,2.62172,3814.3,3814.0,0.7845]
[1733965251422,2.62209,3813.8,3813.3,0.8264]
[1733965251748,2.40771579,3814.1,3813.3,0.8264]
[1733965251909,2.62213,3813.7,3813.3,0.8264]
[1733965252450,2.62221,3813.6,3813.3,0.8264]
[1733965252945,2.62228,3813.5,3813.3,0.8264]
[1733965253331,0.2123,3814.0,3813.3,0.8264]
[1733965253545,2.40771579,3814.1,3813.3,0.8264]
[1733965253747,2.62219,3813.7,3813.3,0.8264]
[1733965256010,2.40771579,3814.1,3813.3,0.8264]
[1733965256249,2.62205,3813.8,3813.3,0.8264]
[1733965257471,2.62212,3813.7,3813.3,0.8264]
[1733965258008,2.62199,3813.9,3813.3,0.8264]
[1733965259311,0.2428626,3813.8,3813.3,0.8264]
[1733965260319,0.24296308,3814.2,3813.5,0.8264]
[1733965260517,0.24297914,3814.1,3813.5,0.8264]
[1733965260738,2.62174,3814.3,3813.5,0.8264]
[1733965260941,0.2429783,3814.2,3813.5,0.8264]
[1733965261150,0.2429783,3814.1,3813.5,0.8264]
[1733965261324,2.62191,3814.1,3813.5,0.8264]
[1733965261721,2.62213,3813.7,3813.5,0.8264]
[1733965261952,5.02957579,3814.1,3812.6,0.8264]
[1733965262271,2.6222,3813.6,3812.6,0.8264]
[1733965262491,2.62198,3813.9,3812.6,0.8264]
[1733965262683,0.2123,3813.7,3812.6,0.8264]
[1733965262820,2.62249,3813.2,3812.6,0.8264]
[1733965263207,5.24218579,3813.7,3812.6,0.8264]
[1733965263208,2.62255,3813.1,3812.6,0.8264]
[1733965263402,2.62219,3813.6,3812.6,0.8264]
[1733965263527,2.62001579,3813.7,3812.6,0.8264]
[1733965263528,2.62242,3813.3,3812.6,0.8264]
[1733965263726,0.24299357,3813.2,3812.6,0.8264]
[1733965264026,2.62242,3813.3,3812.6,0.8264]
[1733965264225,0.24299284,3813.2,3812.6,0.8264]
[1733965264942,0.2429707,3813.5,3812.6,0.8264]
[1733965265247,0.2429707,3813.4,3812.8,0.8264]
[1733965265547,0.2429707,3813.3,3812.8,0.8264]
[1733965265787,0.24294525,3813.2,3812.8,0.8264]
[1733965266097,0.24294525,3813.5,3812.8,0.8264]
[1733965266250,2.62225,3813.6,3812.8,0.8264]
[1733965266251,0.24294525,3813.4,3812.8,0.8264]
[1733965266455,0.24294525,3813.3,3812.8,0.8264]
[1733965266633,2.62199,3813.9,3812.8,0.8264]
[1733965266634,0.24294525,3813.2,3812.8,0.8264]
[1733965266869,2.62233,3813.4,3812.8,0.8264]
[1733965267071,0.2429254,3813.3,3812.8,0.8264]
[1733965267272,2.62215,3813.7,3812.8,0.8264]
[1733965267569,0.24293884,3813.6,3812.8,0.8264]
[1733965267746,0.2123,3814.0,3812.8,0.8264]
[1733965267747,0.24293884,3813.5,3812.8,0.8264]
[1733965267942,0.24293884,3813.4,3812.8,0.8264]
[1733965268170,0.24293884,3813.3,3812.8,0.8264]
[1733965268377,0.24296296,3813.9,3812.8,0.8264]
[1733965268677,0.13351552,3814.6,3813.5,0.8273]
[1733965268875,0.243046,3814.5,3813.1,0.8273]
[1733965269170,0.243046,3814.4,3813.3,0.8273]
[1733965269346,0.243046,3814.3,3813.3,0.8273]
[1733965269547,0.24311098,3814.2,3813.3,0.8273]
[1733965269749,0.24311098,3814.5,3813.3,0.8273]
[1733965270088,0.24311098,3814.4,3813.5,0.8273]
[1733965270291,0.24311098,3814.3,3813.7,0.8273]
[1733965270576,0.24316191,3814.9,3814.0,0.8273]
[1733965270872,0.24316191,3814.8,3814.0,0.8273]
[1733965271071,0.24316191,3814.7,3814.1,0.187607]
[1733965271396,0.24316191,3815.0,3814.1,0.187607]
[1733965271686,0.24316191,3814.9,3814.0,0.8273]
[1733965271896,0.24316191,3814.8,3814.0,0.8273]
[1733965272099,0.24316191,3814.7,3814.0,1.87605]
[1733965272238,2.83332,3815.3,3814.0,1.87605]
[1733965272239,0.24316191,3815.2,3814.0,0.8273]
[1733965272439,0.24316191,3815.1,3814.4,0.8273]
[1733965272770,0.24316191,3815.0,3814.4,1.01751953]
[1733965273091,2.62094,3815.5,3814.4,1.01751953]
[1733965273290,2.62094,3815.5,3814.4,0.8273]
[1733965273291,0.24318556,3815.4,3814.4,0.8273]
[1733965273500,0.24318556,3815.3,3814.4,0.8273]
[1733965273641,0.24318556,3815.2,3814.4,0.8273]
[1733965273833,0.24318556,3815.1,3814.4,0.8273]
[1733965274039,0.24318556,3815.0,3814.4,0.8273]
[1733965274277,0.24318556,3815.1,3814.4,0.8273]
[1733965274591,0.24318556,3815.0,3814.4,0.8273]
[1733965274797,2.86416556,3815.4,3814.4,0.8273]
[1733965274958,0.24318556,3815.3,3814.5,0.187601]
[1733965275161,0.24318556,3815.2,3814.5,0.187601]
[1733965275401,0.24318556,3815.3,3814.5,0.187601]
[1733965275741,0.24318556,3815.2,3814.5,0.187601]
[1733965275944,0.24318556,3815.3,3814.5,0.187601]
[1733965276209,0.24318556,3815.2,3814.5,0.187601]
[1733965276355,0.13133834,3815.5,3814.4,0.8273]
[1733965276356,0.24311473,3815.3,3814.6,0.2063571]
[1733965276564,0.24311473,3815.4,3814.7,0.8273]
[1733965276878,0.24311473,3815.6,3815.1,1.04846]
[1733965277059,0.24311473,3816.0,3815.2,0.8273]
[1733965277260,0.24311473,3816.1,3815.2,0.8273]
[1733965277593,2.75060258,3816.2,3815.2,0.8273]
[1733965277934,0.24311473,3816.1,3815.2,0.8273]
[1733965278225,0.24311473,3816.1,3815.2,1.014881]
[1733965278768,2.86361473,3816.1,3815.2,1.014881]
[1733965278971,2.6205,3816.1,3815.2,1.014881]
[1733965279276,0.13017258,3816.2,3815.2,1.014881]
[1733965279555,2.75057258,3816.2,3815.2,1.014881]
[1733965279784,2.75057258,3816.2,3815.3,0.44710768]
[1733965280103,0.13669261,3816.6,3815.4,0.8273]
[1733965280304,2.62025,3816.5,3815.4,0.8273]
[1733965280507,0.13669261,3816.6,3815.5,0.8273]
[1733965280678,2.86265781,3816.7,3815.5,0.8273]
[1733965280998,2.62006,3816.7,3815.7,0.8273]
[1733965281387,0.2123,3816.9,3815.7,0.8273]
[1733965281590,0.45460611,3816.9,3815.7,0.8273]
[1733965281786,0.3790174,3816.9,3815.7,0.8273]
[1733965281985,0.13671129,3816.9,3815.7,0.8273]
[1733965282175,0.24230611,3817.3,3816.3,3.17501579]
[1733965282379,2.61964,3817.4,3816.4,0.7673]
[1733965282576,0.24230611,3817.3,3816.4,0.7673]
[1733965282771,2.61965,3817.3,3816.4,0.7673]
[1733965283818,0.2123,3817.8,3816.4,0.7673]
[1733965283983,0.2123,3817.8,3816.6,0.7673]
[1733965284180,2.61948,3817.6,3816.6,0.7673]
[1733965285245,0.2123,3817.8,3816.6,0.7673]
[1733965285438,2.61975,3817.2,3816.6,0.7673]
[1733965285602,2.61998,3816.9,3816.6,0.7673]
[1733965285924,2.61998,3816.9,3815.9,0.7673]
[1733965285925,2.62027,3816.4,3815.9,0.7673]
[1733965286110,0.2123,3816.7,3815.9,0.7673]
[1733965286420,2.62013,3816.6,3815.9,0.7673]
[1733965286719,2.62037,3816.3,3815.9,0.7673]
[1733965287283,2.62013,3816.6,3815.9,0.7673]
[1733965287496,0.2123,3816.7,3815.9,0.7673]
[1733965287713,2.62021,3816.5,3815.9,0.7673]
[1733965288225,0.7623,3817.1,3815.9,0.7673]
[1733965288387,2.62036,3816.3,3815.9,0.7673]
[1733965289324,0.2123,3817.1,3815.9,0.7673]
[1733965289537,2.61999,3816.8,3815.9,0.7673]
[1733965290525,0.2123,3817.1,3815.9,0.7673]
[1733965290724,2.62007,3816.7,3816.0,0.31750158]
[1733965291445,2.61972,3817.2,3816.2,2.40771579]
[1733965291649,2.61972,3817.2,3816.3,0.7673]
[1733965293723,0.12861693,3817.6,3816.3,0.7673]
[1733965294055,2.61986,3817.0,3816.4,0.31750158]
[1733965294257,2.61951,3817.5,3816.4,0.31750158]
[1733965294453,0.12861693,3817.6,3816.4,0.31750158]
[1733965294684,2.61951,3817.5,3816.3,0.7673]
[1733965294978,0.12861693,3817.6,3816.3,0.7673]
[1733965295122,2.61958,3817.4,3816.3,0.7673]
[1733965295318,2.61965,3817.3,3816.3,0.7673]
[1733965295512,2.61973,3817.2,3816.5,0.7673]
[1733965296954,2.61959,3817.4,3816.5,0.7673]
[1733965298455,2.61952,3817.5,3816.5,0.7673]
[1733965298943,0.55140095,3817.9,3816.7,0.8122]
[1733965299240,2.61938,3817.7,3816.7,0.8122]
[1733965299478,0.59428056,3817.9,3817.0,2.40771579]
[1733965299617,0.2417343,3817.9,3817.1,0.8122]
[1733965299818,0.28461391,3817.9,3817.1,0.8122]
[1733965300037,0.28461391,3817.9,3817.3,0.8122]
[1733965300365,2.61946,3817.6,3817.3,0.8122]
[1733965300508,2.6194,3817.7,3817.3,0.8122]
[1733965300804,0.04298101,3817.6,3817.3,0.8122]
[1733965301410,2.61933,3817.8,3817.3,0.8122]
[1733965301620,0.04292572,3817.5,3817.3,0.8122]
[1733965301781,0.2417343,3817.9,3817.3,0.8122]
[1733965301981,0.04287043,3817.4,3817.3,0.8122]
[1733965302221,2.61931,3817.8,3817.3,0.8122]
[1733965302421,0.04287043,3817.4,3817.3,0.8122]
[1733965302622,2.61952,3817.5,3817.3,0.8122]
[1733965302828,0.04287043,3817.4,3817.3,0.8122]
[1733965303728,2.61938,3817.7,3817.3,0.8122]
[1733965303893,2.66245101,3817.6,3817.3,0.8122]
[1733965305200,0.04298101,3817.6,3817.3,0.8122]
[1733965305618,0.24262484,3817.6,3817.3,0.8122]
[1733965305784,0.04292572,3817.5,3817.3,0.8122]
[1733965305990,0.04292572,3817.5,3817.4,0.998211]
[1733965306296,0.04306959,3817.5,3817.4,0.186011]
[1733965306498,0.24262484,3818.1,3817.4,0.186011]
[1733965306683,0.03180091,3818.0,3817.4,0.186011]
[1733965306889,0.03180091,3818.0,3817.0,3.0]
[1733965306890,0.03180091,3818.0,3817.8,0.8122]
[1733965307169,0.31065263,3818.7,3817.8,0.8122]
[1733965307446,0.2123,3819.1,3817.8,0.8122]
[1733965307447,0.03177565,3817.9,3817.8,1.85991]
[1733965307748,2.61847,3819.1,3817.8,1.85991]
[1733965307749,0.24273023,3818.9,3817.9,0.8122]
[1733965307894,0.24273023,3818.8,3817.9,0.8122]
[1733965308251,0.02560085,3818.7,3818.1,0.8122]
[1733965308740,0.24273023,3818.8,3818.1,0.8122]
[1733965308926,0.02597656,3818.7,3818.1,0.8122]
[1733965309090,2.61841,3819.1,3818.1,0.8122]
[1733965309288,0.26858574,3819.0,3818.1,3.21991579]
[1733965309614,0.02607127,3819.0,3818.3,0.8122]
[1733965309926,0.24251447,3819.0,3818.3,0.8122]
[1733965310126,0.5531671,3819.3,3818.3,0.8122]
[1733965310359,2.61882,3818.6,3818.3,0.8122]
[1733965310829,0.02614234,3818.5,3818.3,0.8122]
[1733965311827,0.02614234,3818.5,3818.3,0.96609626]
[1733965312033,0.24224424,3818.9,3818.3,0.96609626]
[1733965312229,0.02611076,3818.4,3818.3,0.96609626]
[1733965312479,2.86072424,3819.1,3818.3,0.96609626]
[1733965312680,0.24224424,3819.0,3818.3,0.96609626]
[1733965312843,0.26853859,3819.0,3818.3,0.96609626]
[1733965313048,0.26853859,3819.0,3818.4,0.33738121]
[1733965313255,0.02629435,3819.0,3818.5,0.7934]
[1733965313567,2.61817,3819.5,3818.5,0.7934]
[1733965313788,2.61817,3819.5,3818.5,3.20111579]
[1733965313789,0.02464339,3818.9,3818.5,3.20111579]
[1733965314089,2.61802,3819.7,3818.6,0.7934]
[1733965314384,2.61802,3819.7,3818.8,0.7934]
[1733965314558,0.27460388,3819.6,3818.8,0.7934]
[1733965314745,0.03248378,3819.6,3818.9,3.20111579]
[1733965314984,0.24195001,3819.8,3819.0,0.7934]
[1733965315291,2.61768,3820.2,3819.2,0.7934]
[1733965315292,0.02745229,3819.5,3819.2,0.7934]
[1733965315431,0.24195836,3820.1,3819.2,0.7934]
[1733965315432,2.85968836,3820.1,3819.2,0.7934]
[1733965315631,0.02591752,3819.4,3819.2,0.7934]
[1733965315880,2.61773,3820.1,3819.2,0.7934]
[1733965316034,0.03173556,3819.3,3819.2,0.7934]
[1733965316232,0.03173556,3819.3,3819.2,1.55287671]
[1733965316501,2.61759,3820.3,3819.3,0.7934]
[1733965316987,0.2123,3820.7,3819.4,0.7934]
[1733965317133,2.61794,3819.8,3819.4,0.7934]
[1733965317586,2.61779,3820.1,3819.4,0.7934]
[1733965317883,2.61779,3820.1,3819.4,0.98069883]
[1733965318438,0.3093735,3820.6,3819.4,0.98069883]
[1733965318789,7.15867885,3821.5,3819.8,0.7934]
[1733965318790,0.3093735,3821.1,3819.8,0.7934]
[1733965318954,2.61713,3821.0,3820.2,0.7934]
[1733965319134,2.66024993,3821.0,3820.2,0.7934]
[1733965319336,2.66024993,3821.0,3820.2,1.11351158]
[1733965319575,2.61726,3820.8,3820.2,1.11351158]
[1733965320101,0.04311993,3821.0,3820.2,0.7934]
[1733965320102,2.61746,3820.5,3820.2,0.7934]
[1733965320389,0.0380835,3820.5,3820.2,0.7934]
[1733965320890,0.24174146,3821.2,3820.2,0.7934]
[1733965321048,2.61753,3820.4,3820.2,0.7934]
[1733965321276,0.03837788,3821.1,3820.2,0.7934]
[1733965321479,2.61741,3820.6,3820.2,0.7934]
[1733965321887,0.0380835,3820.5,3820.2,0.7934]
[1733965322495,2.61754,3820.4,3820.2,0.7934]
[1733965322657,0.0380835,3820.5,3820.2,0.7934]
[1733965322836,2.61738,3820.7,3820.2,0.7934]
[1733965323084,0.0380835,3820.5,3820.2,0.7934]
[1733965323299,2.6559604,3820.6,3820.2,0.7934]
[1733965323471,0.03847226,3820.4,3820.2,0.7934]
[1733965323676,0.30906882,3821.1,3820.2,0.7934]
[1733965323851,0.03842319,3820.3,3820.2,0.7934]
[1733965324064,0.30906882,3821.1,3820.2,0.7934]
[1733965324382,2.61691,3821.3,3820.2,0.7934]
[1733965324537,0.0385395,3821.0,3820.2,0.7934]
[1733965324752,0.30905375,3821.6,3820.3,0.7934]
[1733965324753,2.61687,3821.4,3820.3,0.7934]
[1733965324962,0.04352249,3821.3,3820.5,0.7934]
[1733965325174,2.61683,3821.5,3820.5,0.7934]
[1733965325465,0.03863761,3821.2,3820.6,0.7934]
[1733965325662,0.4388301,3821.8,3820.6,0.7934]
[1733965325663,2.61691,3821.3,3820.6,0.7934]
[1733965325936,2.61725,3820.8,3820.6,0.7934]
[1733965326294,0.03455308,3820.7,3820.3,0.7934]
[1733965326605,2.61719,3820.9,3820.3,0.7934]
[1733965326751,0.03450892,3820.6,3820.3,0.7934]
[1733965327122,0.2123,3821.5,3820.3,0.7934]
[1733965327256,2.65198476,3820.5,3820.3,0.7934]
[1733965327458,2.61773,3820.1,3819.8,0.8077]
[1733965327781,0.03809787,3820.1,3819.5,0.8077]
[1733965327967,2.61803,3819.7,3819.5,0.8077]
[1733965328464,0.03432159,3819.6,3819.5,0.8077]
[1733965329443,0.03432159,3819.6,3819.0,0.8077]
[1733965329788,2.61806,3819.7,3819.0,0.8077]
[1733965329986,2.61822,3819.4,3819.0,0.8077]
[1733965330184,0.0381351,3819.6,3819.0,0.8077]
[1733965330513,2.61838,3819.2,3819.0,0.8077]
[1733965330736,2.61837,3819.2,3819.0,0.8077]
[1733965331178,2.61848,3819.0,3818.4,0.8077]
[1733965331368,2.61848,3819.0,3818.4,1.18847]
[1733965331369,2.61849,3819.0,3818.4,1.18847]
[1733965331986,2.61855,3818.9,3818.4,1.18847]
[1733965334688,2.83055,3819.4,3818.4,1.18847]
[1733965334689,2.61848,3819.0,3818.4,1.18847]
[1733965334913,2.61776,3820.1,3819.0,0.792]
[1733965335072,2.61756,3820.4,3819.3,0.792]
[1733965335266,2.61739,3820.6,3819.3,4.83931]
[1733965335464,0.24231262,3820.5,3819.4,0.792]
[1733965335714,2.61767,3820.2,3819.4,0.792]
[1733965335906,2.61767,3820.2,3819.5,0.61997158]
[1733965336074,2.61774,3820.1,3819.5,0.61997158]
[1733965336264,2.61718,3820.9,3819.5,0.61997158]
[1733965336491,2.61787,3819.9,3819.5,0.61997158]
[1733965336693,2.618,3819.7,3819.5,0.61997158]
[1733965336992,2.618,3819.7,3819.4,0.792]
[1733965337508,2.61809,3819.6,3819.4,0.792]
[1733965337708,2.61814,3819.5,3819.4,0.792]
[1733965338213,2.618,3819.8,3819.4,0.792]
[1733965338799,2.618,3819.7,3819.4,0.792]
[1733965339196,2.61766,3820.2,3819.4,0.792]
[1733965339401,0.2123,3820.3,3819.4,0.792]
[1733965339402,0.24245583,3820.1,3819.4,0.792]
[1733965339744,2.61785,3820.0,3819.4,0.792]
[1733965340243,0.2123,3820.7,3819.4,0.792]
[1733965340453,0.24253691,3820.6,3819.4,0.792]
[1733965340648,2.61799,3819.8,3819.4,0.792]
[1733965341015,2.61802,3819.7,3819.4,0.792]
[1733965341646,2.61738,3820.6,3819.4,0.792]
[1733965341812,0.2123,3820.3,3818.6,0.7939]
[1733965342011,2.61821,3819.4,3818.7,0.65823858]
[1733965342717,0.2123,3820.3,3818.6,0.7939]
[1733965342952,2.61773,3820.1,3818.6,0.7939]
[1733965343249,2.61797,3819.8,3818.8,0.7939]
[1733965343450,0.24254615,3819.7,3818.9,0.7939]
[1733965344257,0.2123,3820.3,3818.9,0.7939]
[1733965344258,2.86061615,3819.6,3818.9,0.7939]
[1733965344432,2.61815,3819.5,3818.9,0.7939]
[1733965345129,2.82994,3820.3,3819.0,0.02618335]
[1733965345330,2.61794,3819.8,3818.9,0.7939]
[1733965345630,0.24258073,3819.7,3818.9,0.7939]
[1733965345838,0.24258073,3819.6,3818.9,0.7939]
[1733965346321,0.24258073,3819.7,3818.9,0.7939]
[1733965346518,2.86066073,3819.6,3818.9,0.7939]